fUSD/lending_fUSD_20241015
["ID","MTS","AMOUNT","RATE_DAILY","PERIOD"]
[340298718,1729009838231,-1720.75393469,0.00011,2]
[340298719,1729009838258,-974100.90008995,0.00011,2]
[340298720,1729009838269,-5974.7917284,0.00011,2]
[340298721,1729009838281,-2014.51930002,0.00011,2]
[340298722,1729009838293,-44927.75358361,0.00011,2]
[340298723,1729009838305,-7438.13842549,0.00011,2]
[340298724,1729009838319,-1233.64916876,0.00011,2]
[340298725,1729009838331,-31499.12898451,0.00011,2]
[340298726,1729009838347,-24003.67265126,0.00011,2]
[340298727,1729009838359,-705.09885338,0.00011,2]
[340298729,1729009838372,-3843.61361225,0.00011,2]
[340298731,1729009838383,-1922.01009,0.00011,2]
[340298733,1729009838395,-988.63282662,0.00011,2]
[340298735,1729009838406,-1742.98515145,0.00011,2]
[340298738,1729009839877,-1403.41242789,0.00011,2]
[340298739,1729009839888,-518.26,0.00011,2]
[340298740,1729009839901,-1486.49193708,0.00011,2]
[340298741,1729009839935,-316.37510169,0.00011,2]
[340298742,1729009839990,-295.69770592,0.00011,2]
[340298743,1729009840019,-1562.78016588,0.00011,2]
[340298744,1729009840032,-406.289999,0.00011,2]
[340298745,1729009840154,-1514.169996,0.00011,2]
[340298891,1729009842902,-2206.878619,0.00011,2]
[340298897,1729009842958,-6949.9344931,0.00011,2]
[340298917,1729009843178,-577.3964589,0.00011,2]
[340298924,1729009843235,-664.82574,0.00011,2]
[340298931,1729009843292,-32789.9182493,0.00011,2]
[340298933,1729009843305,-22575.90400755,0.00011,2]
[340298963,1729009845847,-1264.7968584,0.00011,2]
[340298981,1729009846006,-66741.59788933,0.00011,2]
[340298983,1729009846018,-48506.41917312,0.00011,2]
[340298986,1729009846030,-66602.06076622,0.00011,2]
[340298990,1729009846062,-2107.65208424,0.00011,2]
[340298997,1729009846124,-66702.40437154,0.00011,2]
[340298999,1729009846135,-1666.15,0.00011,2]
[340304601,1729010034469,888.0,0.00027,60]
[340304635,1729010968176,193.11,9.271e-05,2]
[340304647,1729011032017,-281.835,0.0001078,2]
[340304648,1729011032028,-176.579,0.0001078,2]
[340304649,1729011032038,-4751.68133128,0.00010781,2]
[340304650,1729011032050,-291.04367602,0.00010781,2]
[340304651,1729011032061,-415.98592689,0.00010781,2]
[340304652,1729011032073,-726.67746112,0.00010781,2]
[340304653,1729011032085,-1800.0,0.00010781,2]
[340304654,1729011032096,-128.61160469,0.00010781,2]
[340304655,1729011032107,-150.0,0.00010877,2]
[340304656,1729011032116,-182.92417128,0.000109,2]
[340304657,1729011032125,-222.0,0.000109,2]
[340304658,1729011032135,-467.5342,0.000109,2]
[340304659,1729011032144,-163.91404132,0.000109,2]
[340304660,1729011032154,-1099.09266555,0.000109,2]
[340304661,1729011032165,-857.30470671,0.000109,2]
[340304662,1729011032176,-5083.0,0.000109,2]
[340304663,1729011032191,-256.41264469,0.000109,2]
[340304664,1729011032203,-2075.46117366,0.000109,2]
[340304665,1729011032212,-1754.7882,0.000109,2]
[340304666,1729011032222,-244.83174576,0.000109,2]
[340304667,1729011032231,-10472.0346,0.000109,2]
[340304668,1729011032243,-2538.3461,0.000109,2]
[340304669,1729011032252,-2710.5337,0.000109,2]
[340304670,1729011032262,-1951.5920661,0.000109,2]
[340304671,1729011032270,-191.29310577,0.000109,2]
[340304672,1729011032280,-781.45605544,0.000109,2]
[340304673,1729011032289,-9778.57997718,0.000109,2]
[340304674,1729011032298,-713.9755,0.000109,2]
[340304675,1729011032308,-1084.5288,0.000109,2]
[340304677,1729011032317,-290.3734,0.000109,2]
[340304679,1729011032327,-156.3,0.00010959,2]
[340304681,1729011032337,-156.8,0.00010959,2]
[340304683,1729011032347,-233.74,0.00010959,2]
[340304684,1729011032356,-222.0,0.00010972,2]
[340304685,1729011032366,-791.71,0.00010973,2]
[340304686,1729011032375,-299.99,0.00010973,2]
[340304687,1729011032385,-150.99,0.00010973,2]
[340304688,1729011032395,-499.99,0.00010973,2]
[340304689,1729011032404,-968.11,0.00010973,2]
[340304690,1729011032414,-500.0,0.00010973,2]
[340304691,1729011032423,-500.0,0.00010973,2]
[340304692,1729011032431,-266.01932501,0.00010999,2]
[340304693,1729011032440,-500.0,0.00010999,2]
[340304694,1729011032619,-500.0,0.00010999,2]
[340304695,1729011032629,-500.0,0.00010999,2]
[340304696,1729011032638,-427.14727838,0.00010999,2]
[340304697,1729011032648,-481.67204763,0.00010999,2]
[340304698,1729011032657,-503.78575867,0.00010999,2]
[340304699,1729011032666,-500.0,0.00010999,2]
[340304700,1729011032676,-500.0,0.00010999,2]
[340304701,1729011032685,-519.48815669,0.00010999,2]
[340304702,1729011032694,-500.0,0.00010999,2]
[340304703,1729011032703,-500.0,0.00010999,2]
[340304704,1729011032713,-500.0,0.00010999,2]
[340304705,1729011032722,-623924.2273593,0.00011,2]
[340304706,1729011032737,-4993.424,0.00011,2]
[340304707,1729011032749,-680.92990695,0.00011,2]
[340304708,1729011032760,-3949.7614307,0.00011,2]
[340304709,1729011032770,-854.80884198,0.00011,2]
[340304710,1729011032782,-400750.39272689,0.00011,2]
[340304711,1729011032798,-926.43635877,0.00011,2]
[340304712,1729011032809,-6817.17459968,0.00011,2]
[340304713,1729011032827,-2300.0,0.00011,2]
[340304714,1729011032838,-1955.20216614,0.00011,2]
[340304715,1729011032850,-7914.48,0.00011,2]
[340304716,1729011032861,-7098.22734583,0.00011,2]
[340304720,1729011038024,-404.23910663,0.00011,2]
[340304721,1729011038035,-4207.4695537,0.00011,2]
[340304722,1729011038046,-484.0774728,0.00011,2]
[340304723,1729011038080,-2000.0,0.00011,2]
[340304724,1729011038148,-407513.15,0.00011,2]
[340304727,1729011038162,-141000.0,0.00011,2]
[340304728,1729011038195,-1564.26423106,0.00011,2]
[340304729,1729011038253,-2604.0,0.00011,2]
[340304730,1729011038264,-5146.02669942,0.00011,2]
[340304731,1729011038418,-644568.73313865,0.00011,2]
[340304742,1729011040043,-177821.08230648,0.00011,2]
[340304743,1729011040097,-145561.86969388,0.00011,2]
[340304744,1729011040108,-10802.07936784,0.00011,2]
[340304745,1729011040154,-301190.45021996,0.00011,2]
[340304746,1729011040166,-1182.8,0.00011,2]
[340304747,1729011040176,-1080.28693289,0.00011,2]
[340304748,1729011040187,-3861.07696659,0.00011,2]
[340304749,1729011040210,-664.53217905,0.00011,2]
[340304750,1729011040221,-350.5888505,0.00011,2]
[340304751,1729011040233,-665.68130805,0.00011,2]
[340304752,1729011040247,-6979.23604286,0.00011,2]
[340304753,1729011040267,-354.76611255,0.00011,2]
[340304754,1729011040278,-1615.981716,0.00011,2]
[340304755,1729011040324,-1143.320003,0.00011,2]
[340304756,1729011040337,-16975.58111324,0.00011,2]
[340304757,1729011040351,-593.2704582,0.00011,2]
[340304835,1729011043176,-194.78,0.00010959,2]
[340304836,1729011043185,-58.58791739,0.00011,2]
[340304837,1729011043196,-11017.7906506,0.00011,2]
[340304838,1729011043232,-5354.82805874,0.00011,2]
[340304839,1729011043244,-929.96123073,0.00011,2]
[340304840,1729011043255,-858.6849167,0.00011,2]
[340304841,1729011043395,-541.92539657,0.00011,2]
[340304842,1729011043406,-697.68583,0.00011,2]
[340304843,1729011043417,-720.02828238,0.00011,2]
[340304844,1729011043428,-502.49912,0.00011,2]
[340304845,1729011043439,-1308.00000413,0.00011,2]
[340304858,1729011045996,-392.92653395,0.000109,2]
[340304859,1729011046008,-397.22296605,0.000109,2]
[340304860,1729011046017,-5853.30500372,0.00011,2]
[340304861,1729011046055,-62084.24849883,0.00011,2]
[340304862,1729011046068,-100494.01785308,0.00011,2]
[340304863,1729011046111,-308.1,0.00011,2]
[340304864,1729011046122,-6723.0168,0.00011,2]
[340304865,1729011046133,-11476.78971052,0.00011,2]
[340304866,1729011046273,-368.415111,0.00011,2]
[340304867,1729011046284,-29765.50918836,0.00011,2]
[340304868,1729011046295,-1375.77057068,0.00011,2]
[340304870,1729011046306,-21505.61610401,0.00011,2]
[340304918,1729011712805,-258.698,0.0001078,2]
[340304919,1729011712833,-176.58,0.0001078,2]
[340304920,1729011712855,-6470.1463,0.0001079,2]
[340304921,1729011712877,-500.0,0.00010873,2]
[340304922,1729011712902,-150.0,0.00010889,2]
[340304923,1729011712924,-24493.58273633,0.0001089,2]
[340304924,1729011712946,-13451.99296367,0.000109,2]
[340304925,1729011717270,-15264.73463633,0.000109,2]
[340304926,1729011717291,-182.92417127,0.000109,2]
[340304927,1729011717314,-3766.3612,0.000109,2]
[340304928,1729011717335,-177.9501,0.000109,2]
[340304929,1729011717356,-4856.7053,0.000109,2]
[340304930,1729011717376,-962.6503,0.000109,2]
[340304931,1729011717397,-5207.528,0.000109,2]
[340304932,1729011717419,-602.58697499,0.000109,2]
[340304933,1729011717440,-433.2501,0.000109,2]
[340304934,1729011717461,-8434.14407154,0.000109,2]
[340304935,1729011717482,-1682.2527,0.000109,2]
[340304936,1729011717503,-845.5047174,0.000109,2]
[340304937,1729011717524,-7583.40772847,0.000109,2]
[340304938,1729011717678,-50000.0,0.000109,2]
[340304939,1729011718243,-50000.0,0.000109,2]
[340304940,1729011718825,-50000.0,0.000109,2]
[340304941,1729011719793,-8164.21167153,0.000109,2]
[340304942,1729011719821,-7582.99433,0.000109,2]
[340304943,1729011719844,-158.59,0.00010959,2]
[340304944,1729011719866,-196.98,0.00010959,2]
[340304945,1729011719888,-164.15,0.00010959,2]
[340304946,1729011719909,-820.79,0.00010959,2]
[340304947,1729011719932,-203.52548115,0.00010973,2]
[340304948,1729011719954,-187.5332026,0.0001099,2]
[340304949,1729011719976,-187.5332026,0.0001099,2]
[340304950,1729011719998,-500.0,0.00010999,2]
[340304951,1729011720021,-635.79404351,0.00010999,2]
[340304952,1729011720044,-500.0,0.00010999,2]
[340304953,1729011720066,-505.33874136,0.00010999,2]
[340304954,1729011720087,-198.1744672,0.00010999,2]
[340304955,1729011720109,-500.0,0.00010999,2]
[340304956,1729011720130,-275.0,0.00010999,2]
[340304957,1729011720151,-500.0,0.00010999,2]
[340304958,1729011720174,-500.0,0.00010999,2]
[340304959,1729011720196,-500.0,0.00010999,2]
[340304960,1729011720217,-500.0,0.00010999,2]
[340304961,1729011720239,-500.0,0.00010999,2]
[340304962,1729011720261,-500.68734814,0.00010999,2]
[340304963,1729011720282,-500.0,0.00010999,2]
[340304964,1729011720305,-500.0,0.00010999,2]
[340304965,1729011720327,-500.0,0.00010999,2]
[340304966,1729011720348,-500.0,0.00010999,2]
[340304967,1729011720371,-500.0,0.00010999,2]
[340304968,1729011720394,-310.24421449,0.00010999,2]
[340304969,1729011720420,-23408.45329742,0.00011,2]
[340304970,1729011733844,-500.0,0.00010873,2]
[340304971,1729011733870,-85500.0,0.00011,2]
[340304972,1729011755246,-443.80112557,0.0001078,2]
[340304973,1729011755272,-59985.19887443,0.00011,2]
[340304993,1729012232211,-918.0,0.00010781,2]
[340304994,1729012232221,-7590.72966435,0.000109,2]
[340304995,1729012232230,-163.22116384,0.000109,2]
[340304996,1729012232240,-563.6698116,0.000109,2]
[340304997,1729012232254,-159.71,0.00010959,2]
[340304998,1729012232263,-152.11531837,0.00010999,2]
[340304999,1729012232273,-580907.04549625,0.00011,2]
[340305000,1729012232285,-980.23063339,0.00011,2]
[340305001,1729012232296,-5599.02414876,0.00011,2]
[340305002,1729012232307,-3576.97871244,0.00011,2]
[340305003,1729012232318,-4477.92071747,0.00011,2]
[340305004,1729012232329,-777.95581629,0.00011,2]
[340305005,1729012232341,-1091.26357004,0.00011,2]
[340305006,1729012232352,-1023.36525247,0.00011,2]
[340305007,1729012232363,-992.20371602,0.00011,2]
[340305008,1729012232374,-470.63449296,0.00011,2]
[340305009,1729012232386,-36333.39832612,0.00011,2]
[340305010,1729012232398,-46499.99999234,0.00011,2]
[340305011,1729012232414,-544498.94264741,0.00011,2]
[340305012,1729012232425,-603.03497768,0.00011,2]
[340305013,1729012232436,-1182.73708964,0.00011,2]
[340305014,1729012232447,-630.08,0.00011,2]
[340305015,1729012232459,-544.02,0.00011,2]
[340305016,1729012232471,-5653.0,0.00011,2]
[340305017,1729012232483,-765.29022052,0.00011,2]
[340305018,1729012232990,-1.17859433,0.00011,2]
[340305019,1729012233006,-934.17092705,0.00011,2]
[340305020,1729012233019,-548.6778876,0.00011,2]
[340305021,1729012233033,-5673.50863488,0.00011,2]
[340305022,1729012233045,-2135.8388,0.00011,2]
[340305023,1729012233058,-10552.6900996,0.00011,2]
[340305024,1729012233070,-527981.49347122,0.00011,2]
[340305025,1729012233082,-300.75376989,0.00011,2]
[340305026,1729012238277,-3268.79986303,0.00011,2]
[340305027,1729012238288,-691.60793959,0.00011,2]
[340305028,1729012238337,-749.86877271,0.00011,2]
[340305029,1729012238393,-5037.25274,0.00011,2]
[340305030,1729012238452,-1881830.72197963,0.00011,2]
[340305048,1729012240207,-627.21,0.00011,2]
[340305049,1729012240219,-4086.77261693,0.00011,2]
[340305050,1729012240323,-606.43798335,0.00011,2]
[340305051,1729012240380,-380.119997,0.00011,2]
[340305052,1729012240439,-21055.21231024,0.00011,2]
[340305053,1729012240497,-7177.8541994,0.00011,2]
[340305054,1729012240512,-389.44550813,0.00011,2]
[340305055,1729012243259,-2581.2614539,0.00011,2]
[340305056,1729012243312,-9668.80771737,0.00011,2]
[340305057,1729012243324,-1858.93673647,0.00011,2]
[340305058,1729012243335,-452.38000034,0.00011,2]
[340305059,1729012243478,-20367.92389167,0.00011,2]
[340305060,1729012243490,-1811680.19634148,0.00011,2]
[340305061,1729012243505,-1095.78215054,0.00011,2]
[340305062,1729012243589,-5731.1975172,0.00011,2]
[340305070,1729012246226,-511.51386836,0.00011,2]
[340305071,1729012246237,-337.975,0.00011,2]
[340305072,1729012246248,-4465.82831233,0.00011,2]
[340305073,1729012246267,-4943.43172972,0.00011,2]
[340305074,1729012246280,-12010.60945046,0.00011,2]
[340305075,1729012246454,-109272.68863496,0.00011,2]
[340305076,1729012246516,-5017.54622921,0.00011,2]
[340305080,1729012505766,447.87,0.0002372,120]
[340305081,1729012591363,259.0,0.00027,60]
[340305086,1729013155599,297.87044918,6.94e-05,2]
[340305099,1729013387045,436.55153975,0.00027,60]
[340305112,1729013431353,-239.82,0.0001078,2]
[340305113,1729013431363,-978.25657921,0.000108,2]
[340305114,1729013431375,-404.0,0.000108,2]
[340305115,1729013431387,-800.88892079,0.000108,2]
[340305116,1729013431396,-150.0,0.00010899,2]
[340305117,1729013431408,-691.2316,0.000109,2]
[340305118,1729013431418,-164.48811097,0.000109,2]
[340305119,1729013431427,-6873.98987948,0.000109,2]
[340305120,1729013431439,-5669.83964509,0.000109,2]
[340305121,1729013431450,-554.37197394,0.000109,2]
[340305122,1729013431478,-499.6,0.000109,2]
[340305123,1729013431490,-243.42752977,0.000109,2]
[340305124,1729013431500,-506.47307023,0.000109,2]
[340305125,1729013431511,-1000.3932,0.000109,2]
[340305126,1729013431523,-1000.395,0.000109,2]
[340305127,1729013431539,-347.40099992,0.000109,2]
[340305128,1729013431551,-666.55,0.000109,2]
[340305129,1729013431602,-291.37052985,0.000109,2]
[340305130,1729013431611,-1091.41262625,0.000109,2]
[340305131,1729013431620,-5055.32955334,0.000109,2]
[340305132,1729013431630,-375.7798744,0.000109,2]
[340305133,1729013431639,-162.04,0.00010959,2]
[340305134,1729013431648,-156.3,0.00010959,2]
[340305135,1729013431659,-356.53439081,0.00010973,2]
[340305136,1729013431669,-1211.43458627,0.00010999,2]
[340305137,1729013431679,-14053.35603336,0.00011,2]
[340305138,1729013431690,-26701.8149314,0.00011,2]
[340305207,1729013437481,-1091.41262625,0.00011,2]
[340305208,1729013437596,-4388.41949044,0.00011,2]
[340305210,1729013437934,-3056.4019024,0.00011,2]
[340305215,1729013439396,-847.9,0.00011,2]
[340305216,1729013439513,-34778.61771,0.00011,2]
[340305217,1729013439524,-4942.46757986,0.00011,2]
[340305218,1729013439535,-6999.98349495,0.00011,2]
[340305219,1729013439546,-263.494,0.00011,2]
[340305220,1729013439557,-1393.80104602,0.00011,2]
[340305221,1729013439568,-499.39408115,0.00011,2]
[340305222,1729013439579,-885.4064957,0.00011,2]
[340305223,1729013439590,-75589.03861864,0.00011,2]
[340305224,1729013439663,-10429.19685486,0.00011,2]
[340305227,1729013442491,-1250.0,0.00011,2]
[340305228,1729013442503,-434.12000044,0.00011,2]
[340305229,1729013442514,-765.12087331,0.00011,2]
[340305230,1729013442606,-299.4950214,0.00011,2]
[340305231,1729013442618,-7345.5574327,0.00011,2]
[340305232,1729013442665,-14715.52657833,0.00011,2]
[340305233,1729013442726,-592.3622745,0.00011,2]
[340305234,1729013442737,-1135.73007,0.00011,2]
[340305235,1729013442749,-710.0,0.00011,2]
[340305242,1729013445506,-1665.89,0.00011,2]
[340305243,1729013445518,-3215.1980706,0.00011,2]
[340305244,1729013445530,-1600.0,0.00011,2]
[340305245,1729013445541,-12078.39030516,0.00011,2]
[340305246,1729013445552,-3107.94503315,0.00011,2]
[340305247,1729013445563,-283.83765539,0.00011,2]
[340305248,1729013445585,-101052.53609954,0.00011,2]
[340305249,1729013445597,-64189.02712839,0.00011,2]
[340305250,1729013445635,-5682.87436924,0.00011,2]
[340305251,1729013445696,-631.49999999,0.00011,2]
[340305252,1729013445708,-752.9375,0.00011,2]
[340305253,1729013445719,-281.74546058,0.00011,2]
[340305254,1729013445757,-608.21731146,0.00011,2]
[340305255,1729013445769,-255.00000002,0.00011,2]
[340305261,1729013519867,348.91,0.0001005,2]
[340305266,1729014163015,-300.0,0.00010799,2]
[340305267,1729014163039,-150.0,0.00010899,2]
[340305268,1729014163063,-7135.80355511,0.000109,2]
[340305269,1729014163085,-1308.27763903,0.000109,2]
[340305270,1729014163107,-3370.21970222,0.000109,2]
[340305271,1729014163129,-250.51991628,0.000109,2]
[340305272,1729014163152,-527.26360309,0.000109,2]
[340305273,1729014163175,-911.65553811,0.000109,2]
[340305274,1729014163197,-250.32109785,0.00010973,2]
[340305275,1729014163221,-2180.92086945,0.0001098,2]
[340305276,1729014163244,-511.0,0.00011,2]
[340305277,1729014163272,-11994.08431981,0.00011,2]
[340305278,1729014163294,-36685.93375905,0.00011,2]
[340305279,1729014178700,562.61,0.00010029,2]
[340305289,1729014618719,2718.33,0.00010197,2]
[340305293,1729014631585,-1163.55,0.00010373,2]
[340305294,1729014631597,-4164.65788404,0.00010599,2]
[340305295,1729014631607,-150.0,0.00010689,2]
[340305296,1729014631616,-5971.894,0.00010699,2]
[340305297,1729014631627,-4164.65788403,0.000107,2]
[340305298,1729014631637,-4164.65788403,0.000108,2]
[340305299,1729014631646,-413.9447,0.000109,2]
[340305300,1729014631656,-1903.0746,0.000109,2]
[340305301,1729014631665,-6398.4641,0.000109,2]
[340305302,1729014631675,-461.35565273,0.000109,2]
[340305303,1729014631684,-6482.42179539,0.000109,2]
[340305304,1729014631693,-27168.6624,0.000109,2]
[340305305,1729014631703,-167.01327752,0.000109,2]
[340305306,1729014631712,-150.0,0.00010932,2]
[340305307,1729014631721,-1000.0,0.00010945,2]
[340305308,1729014631731,-1000.0,0.00010945,2]
[340305309,1729014631740,-1000.0,0.00010945,2]
[340305310,1729014631749,-1000.0,0.00010945,2]
[340305311,1729014631758,-1000.0,0.00010945,2]
[340305312,1729014631767,-1000.0,0.00010945,2]
[340305313,1729014631776,-1000.0,0.00010945,2]
[340305314,1729014631785,-1000.0,0.00010945,2]
[340305315,1729014631794,-1000.0,0.00010945,2]
[340305316,1729014631803,-608.2078,0.00010945,2]
[340305317,1729014631812,-168.76,0.00010959,2]
[340305318,1729014631821,-310.47,0.00010959,2]
[340305319,1729014631830,-25735.77,0.00010959,2]
[340305320,1729014631839,-160.49300818,0.00010973,2]
[340305321,1729014631848,-500.2807139,0.00010973,2]
[340305322,1729014631857,-500.0,0.00010973,2]
[340305323,1729014631866,-23900.0,0.00010997,2]
[340305324,1729014631875,-150.0,0.00010999,2]
[340305325,1729014631885,-145434.75334157,0.00011,2]
[340305326,1729014631901,-22379.68877515,0.00011,2]
[340305327,1729014631921,-4574.0,0.00011,2]
[340305340,1729014632063,-0.50474014,0.00011,2]
[340305383,1729014637593,-250.0,0.00010959,2]
[340305384,1729014637603,-1475.69603632,0.00011,2]
[340305385,1729014637615,-332.6814,0.00011,2]
[340305386,1729014637668,-669.0,0.00011,2]
[340305387,1729014637741,-6010.35442655,0.00011,2]
[340305432,1729014639553,-300.22885422,0.00011,2]
[340305433,1729014639757,-1461.2660712,0.00011,2]
[340305434,1729014639768,-16774.48199999,0.00011,2]
[340305435,1729014639831,-11993.50764508,0.00011,2]
[340305436,1729014639842,-996.58785721,0.00011,2]
[340305474,1729014642610,-496.9738945,0.00011,2]
[340305475,1729014642622,-675.76341573,0.00011,2]
[340305476,1729014642635,-489.29187735,0.00011,2]
[340305477,1729014642681,-1006.62630079,0.00011,2]
[340305478,1729014642693,-352.72799642,0.00011,2]
[340305479,1729014642705,-701.666667,0.00011,2]
[340305480,1729014642821,-13092.63179293,0.00011,2]
[340305481,1729014642832,-1175.26064,0.00011,2]
[340305482,1729014642843,-320766.86795399,0.00011,2]
[340305483,1729014642853,-288.0,0.00011,2]
[340305484,1729014642863,-304257.60380704,0.00011,2]
[340305485,1729014642873,-10071.59929662,0.00011,2]
[340305486,1729014642884,-93081.68332439,0.00011,2]
[340305487,1729014642895,-1269.9797806,0.00011,2]
[340305488,1729014642907,-22212.84406301,0.00011,2]
[340305489,1729014642983,-2491.88795997,0.00011,2]
[340305490,1729014642994,-3075.72210345,0.00011,2]
[340305493,1729014643625,550.0,0.0001,2]
[340305500,1729014706472,549.73,9.184e-05,2]
[340305505,1729015016769,250.0,0.00010126,2]
[340305510,1729015207548,522.24,8.244e-05,2]
[340305511,1729015217760,752.59,0.00010115,2]
[340305513,1729015324811,250.0,0.00010106,2]
[340305514,1729015325211,1497.25,0.00010128,2]
[340305518,1729015482285,183.41,0.00010144,2]
[340305520,1729015514565,23900.0,0.00010184,2]
[340305521,1729015558189,172.09,0.00010119,2]
[340305522,1729015563345,1272.43,0.00010122,2]
[340305523,1729015581087,168.52,8.17e-05,2]
[340305527,1729015673434,693.761037,0.00010229,2]
[340305532,1729015727721,376.29,0.00010213,2]
[340305533,1729015760114,496.12,8.281e-05,2]
[340305535,1729015781300,1000.0,0.00010192,2]
[340305541,1729015831743,-250.0,0.00010281,2]
[340305542,1729015831753,-496.12,0.00010544,2]
[340305543,1729015831763,-150.0,0.00010573,2]
[340305544,1729015831772,-212.07691343,0.00010672,2]
[340305545,1729015831783,-87.92308657,0.00010672,2]
[340305546,1729015831792,-960.48241343,0.00010673,2]
[340305547,1729015831803,-3000.20194219,0.00010673,2]
[340305548,1729015831814,-2781.38216888,0.00010673,2]
[340305549,1729015831825,-3820.02169429,0.00010673,2]
[340305550,1729015831835,-19.42105909,0.00010835,2]
[340305551,1729015831846,-480.57894091,0.00010835,2]
[340305552,1729015831855,-500.0,0.00010835,2]
[340305553,1729015831864,-191.856,0.00010899,2]
[340305554,1729015831874,-150.0,0.00010899,2]
[340305555,1729015831883,-274.84722329,0.000109,2]
[340305556,1729015831899,-1299.54390001,0.000109,2]
[340305557,1729015831922,-538.88,0.000109,2]
[340305558,1729015831938,-299.7673767,0.000109,2]
[340305559,1729015831947,-23.27365713,0.000109,2]
[340305560,1729015831958,-158.88414287,0.000109,2]
[340305561,1729015831967,-292.5831,0.000109,2]
[340305562,1729015831977,-298.43289439,0.000109,2]
[340305563,1729015831992,-12619.22250561,0.000109,2]
[340305564,1729015832002,-784.97749439,0.000109,2]
[340305565,1729015832014,-679.27470561,0.000109,2]
[340305566,1729015832022,-4010.1616,0.000109,2]
[340305567,1729015832031,-1000.0,0.000109,2]
[340305568,1729015832041,-1000.0,0.000109,2]
[340305569,1729015832050,-5834.17961586,0.000109,2]
[340305570,1729015832059,-2500.0,0.000109,2]
[340305571,1729015832068,-2246.81313482,0.000109,2]
[340305572,1729015832077,-403.68619613,0.000109,2]
[340305573,1729015832087,-164.43,0.00010934,2]
[340305574,1729015832096,-499.99,0.00010959,2]
[340305575,1729015832105,-1492.22,0.00010959,2]
[340305576,1729015832114,-830.8,0.00010959,2]
[340305577,1729015832123,-159.71,0.00010959,2]
[340305578,1729015832133,-499.99,0.00010959,2]
[340305579,1729015832143,-1500.0,0.00010959,2]
[340305580,1729015832153,-299.99,0.00010959,2]
[340305581,1729015832162,-2666.26,0.00010959,2]
[340305582,1729015832171,-250.0,0.00010959,2]
[340305583,1729015832179,-162.04,0.00010959,2]
[340305584,1729015832189,-150.0,0.00010959,2]
[340305585,1729015832198,-477.39,0.00010959,2]
[340305586,1729015832207,-164.43,0.00010961,2]
[340305587,1729015832216,-160.75872206,0.00010973,2]
[340305588,1729015832227,-164.43,0.00010988,2]
[340305589,1729015832236,-229.25667007,0.0001099,2]
[340305590,1729015832246,-314123.47158568,0.00011,2]
[340305591,1729015832259,-36866.25877717,0.00011,2]
[340305600,1729015837820,-255.436755,0.000109,2]
[340305601,1729015838070,-744.563245,0.000109,2]
[340305602,1729015838081,-895.69389024,0.00010959,2]
[340305603,1729015838093,-586.27968751,0.00010959,2]
[340305604,1729015838236,-1656.96940033,0.00010959,2]
[340305605,1729015838250,-726.06500125,0.00010959,2]
[340305606,1729015838262,-49909.12202067,0.00010959,2]
[340305607,1729015838272,-7491.33600836,0.00011,2]
[340305608,1729015838284,-863.89819992,0.00011,2]
[340305609,1729015838325,-500.0,0.00011,2]
[340305620,1729015840066,-1415.5558431,0.00011,2]
[340305700,1729015842836,-586.38891601,0.00011,2]
[340305701,1729015842851,-3906.29730401,0.00011,2]
[340305702,1729015842866,-3799.999993,0.00011,2]
[340305703,1729015842879,-2743.43994,0.00011,2]
[340305704,1729015842893,-835.04991627,0.00011,2]
[340305705,1729015842963,-512.00786555,0.00011,2]
[340305706,1729015842977,-932.50624994,0.00011,2]
[340305707,1729015842993,-674.74381166,0.00011,2]